Cogmind - Beta 12 @@@ ROGUE MODE // 2023.12.17 @ 21:54:07 Player: Ischenous Result: Destroyed by Y-45 Defender with Beam Rifle Performance ------------- Evolutions (2) 1000 Regions Visited (4) 800 Robots Destroyed (29) 145 Value Destroyed (675) 675 Prototype IDs (2) 40 Alien Tech Used (0) 0 Bonus (0) 0 TOTAL SCORE: 2660 Bonus ------- None Cogmind --------- Core Integrity 0/550 Matter 225/300 Energy 76/100 System Corruption 0% Temperature Cool (18) Movement Core (100) Ox1 Location -8/Materials Parts ------- > --- POWER (2) -------- (None) > --- PROPULSION (2) --- (None) > --- UTILITY (5) ------ Advanced Weight Redist. System Visual Processing Unit Improved Signal Interpreter > --- WEAPON (2) ------- Mining Claw Mining Claw > --- INVENTORY (5) ---- Improved Ion Engine Experimental Sensor Array Peak State ------------ > --- POWER ------------ Light Ion Engine Improved Ion Engine > --- PROPULSION ------- Hover Unit Improved Hover Unit > --- UTILITY ---------- Advanced Weight Redist. System Visual Processing Unit Sensor Array Improved Signal Interpreter Seismic Detector > --- WEAPON ----------- Light Assault Rifle Enhanced Autogun > --- INVENTORY -------- Hover Unit Experimental Sensor Array Heavy EM Pulse Gun Rocket Launcher [Rating: 22] Favorites ----------- Power Light Nuclear Core Engine Light Ion Engine Power Core Light Nuclear Core Propulsion Aluminum Leg Leg Aluminum Leg Wheel Wheel Hover Unit Improved Hover Unit Utility Visual Processing Unit Device Sensor Array Storage Small Storage Unit Processor Visual Processing Unit Weapon Improved EM Shotgun Energy Gun Improved EM Shotgun Energy Cannon Beam Cannon Ballistic Gun Light Assault Rifle Launcher Rocket Launcher Special Weapon Mining Laser Slashing Weapon Mining Claw Build | -11 -10 -9 -9 -8 ------- Run | Jun Mat Mat Min Mat Slots Evolved 4 | . . 2 . 2 Power 1 | . . . . 1 Propulsion . | . . . . . Utility 3 | . . 2 . 1 Weapon . | . . . . . Parts Attached 39 | 8 11 5 5 10 Power 4 | 1 1 . 1 1 Engine 3 | 1 . . 1 1 Core 1 | . 1 . . . Reactor . | . . . . . Propulsion 12 | 4 2 3 2 1 Treads . | . . . . . Leg 7 | 2 2 3 . . Wheel 2 | 2 . . . . Hover 3 | . . . 2 1 Flight . | . . . . . Utility 8 | 2 1 2 1 2 Device 4 | 1 . 1 1 1 Storage 1 | 1 . . . . Processor 3 | . 1 1 . 1 Hackware . | . . . . . Protection . | . . . . . Artifact . | . . . . . Weapon 15 | 1 7 . 1 6 Energy Gun 7 | 1 4 . 1 1 Energy Cannon 1 | . 1 . . . Ballistic Gun 3 | . 1 . . 2 Ballistic Cannon . | . . . . . Launcher 1 | . . . . 1 Special Weapon 1 | . 1 . . . Impact Weapon . | . . . . . Slashing Weapon 2 | . . . . 2 Piercing Weapon . | . . . . . Special Melee Weapon . | . . . . . Unidentified Prototypes 2 | . 1 . . 1 Corrupted Parts 1 | . . 1 . . System Corruption 4 | . . 4 . . Parts Lost 26 | . 8 7 . 11 Power 4 | . 1 1 . 2 Propulsion 9 | . 3 3 . 3 Utility 4 | . 1 1 . 2 Weapon 9 | . 3 2 . 4 Highest Loss Streak 11 | . 6 5 . 11 To Critical Strikes . | . . . . . Average Slot Usage (%) 85 | . 90 83 85 76 Engine 6 | . 7 . 11 9 Core 5 | . 5 10 . . Leg 11 | . 23 11 . . Hover 6 | . . . 21 14 Device 12 | . 7 11 20 20 Storage 8 | . 14 11 . . Processor 15 | . 5 21 22 17 Energy Gun 16 | . 22 17 10 5 Ballistic Gun 1 | . 3 . . 7 Naked Turns . | . . . . . Heaviest Build 17 | 13 16 17 8 16 Greatest Support 26 | 26 20 20 13 22 Greatest Overweight (x) 4 | 1 1 4 . 1 Average Overweight (x) . | . . . . . Largest Inventory Capacity 8 | 8 8 8 5 5 Average Capacity 7 | 7 8 7 5 5 Most Carried 8 | 5 8 8 5 5 Average Carried 5 | 2 5 6 3 4 Final Capacity 8 | 8 8 5 5 5 Final Carried 8 | 2 8 5 5 2 Class Distribution -------------------- 35% | Mutant 28% | Scavenger-Scout 17% | Scavenger-Skirmisher 16% | Scavenger-Mutant Dominant Class ---------------- Mutant | -10/Materials Scavenger-Skirmisher | -9/Materials Scavenger-Scout | -9/Mines Scavenger-Scout | -8/Materials Resources | -11 -10 -9 -9 -8 ----------- Run | Jun Mat Mat Min Mat Matter Collected 506 | 234 169 20 72 11 Remotely . | . . . . . Salvage Created 922 | 19 614 236 31 22 Parts 68 | 2 42 16 6 2 Haulers Intercepted . | . . . . . Recyclers Shooed 2 | 1 1 . . . Parts Field Recycled . | . . . . . Retrieved Matter . | . . . . . Parts Self-Destructed . | . . . . . Prevented . | . . . . . Kills | -11 -10 -9 -9 -8 ------- Run | Jun Mat Mat Min Mat Combat Hostiles Destroyed 19 | . 11 4 3 1 Guns 16 | . 10 2 3 1 Cannons 1 | . 1 . . . AOE 2 | . . 2 . . Classes Destroyed 11 | 1 7 2 . 1 Worker 3 | . 1 2 . . Builder 2 | . 2 . . . Tunneler 1 | 1 . . . . Recycler 1 | . 1 . . . Operator 1 | . 1 . . . Watcher 2 | . 2 . . . Swarmer 6 | . 3 . 3 . Cutter 1 | . . . . 1 Grunt 10 | . 8 2 . . Brawler 1 | . . 1 . . Sentry 1 | . . 1 . . Best Kill Streak 4 | 1 4 3 3 1 Combat Bots Only 3 | . 3 2 3 1 Max Kills in Single Turn 2 | 1 1 2 1 1 Gunslinging . | . . . . . Exploded 1 | . . 1 . . Melee . | . . . . . Uniques/NPCs Destroyed . | . . . . . Combat | -11 -10 -9 -9 -8 -------- Run | Jun Mat Mat Min Mat Damage Taken 2644 | . 1053 567 86 938 Core 989 | . 246 155 28 560 Absorbed by Shields . | . . . . . Core Remaining (%) 51 | 100 1 . 54 . Volleys Fired 92 | 9 52 12 10 9 Largest 2 | 1 2 2 1 2 Hottest 90 | 40 90 90 65 45 Shots Fired 140 | 9 80 21 13 17 Gun 129 | 9 69 21 13 17 Cannon 11 | . 11 . . . Launcher . | . . . . . Special . | . . . . . Kinetic 50 | . 34 . . 16 Thermal 24 | . 11 . 13 . Explosive . | . . . . . Electromagnetic 66 | 9 35 21 . 1 Robot Hit Streak 9 | 5 5 9 3 3 Robot Miss Streak 6 | 1 6 3 5 4 Penetration Max . | . . . . . Secondary Targets 3 | . 3 . . . Max Gunslinging Chain 1 | . 1 . . . Shots Hit Robots 87 | 7 48 16 5 11 Core Hits 47 | 1 28 10 3 5 Critical Kills . | . . . . . Critical Parts Destroyed . | . . . . . Critical Strikes 2 | . 1 . 1 . Burn 1 | . . . 1 . Corrupt 1 | . 1 . . . Melee Attacks 5 | . . . . 5 Impact . | . . . . . Slashing 5 | . . . . 5 Piercing . | . . . . . Sneak Attacks . | . . . . . Combat Hostiles . | . . . . . Follow-up Attacks 1 | . . . . 1 Damage Inflicted 1820 | 90 1047 398 83 202 Guns 1110 | 90 602 236 83 99 Cannons 123 | . 123 . . . Explosions 483 | . 322 161 . . Melee 94 | . . . . 94 Ramming 10 | . . 1 . 9 Kinetic 305 | . 206 . . 99 Thermal 411 | . 167 161 83 . Explosive 278 | . 278 . . . Electromagnetic 722 | 90 396 236 . . Impact . | . . . . . Slashing 94 | . . . . 94 Piercing . | . . . . . Highest Corruption 4 | . . 4 4 . Average Corruption 4 | . . 4 4 . Corruption Purged . | . . . . . Corruption Blocked . | . . . . . Effects 14 | . . 5 9 . Matter Fused 4 | . . 2 2 . Heat Flow Errors 1 | . . . 1 . Energy Discharges 3 | . . 2 1 . Parts Rejected 1 | . . 1 . . Data Loss (major) 2 | . . . 2 . Misfires 3 | . . . 3 . Overload Shots . | . . . . . Overflow Damage 12 | . 12 . . . Projectiles 6 | . 6 . . . Explosions 6 | . 6 . . . Melee . | . . . . . Knockbacks . | . . . . . Impact . | . . . . . Kinetic . | . . . . . Secondary . | . . . . . Self-Inflicted Damage 164 | . 120 40 . 4 Shots 3 | . 2 1 . . Rammed 3 | . . . . 3 Targets Rammed 4 | . . 1 . 3 Kicked 1 | . . 1 . . Crushed . | . . . . . Highest Temperature 262 | . 262 165 167 16 Average Temperature 72 | . 79 67 71 10 Received Heat Transfer 804 | . 480 189 . 135 Siege Activations . | . . . . . Robots Corrupted . | . . . . . Combat Hostiles . | . . . . . Parts Fried 2 | . 1 1 . . Impact Corruptions . | . . . . . Robots Melted . | . . . . . Combat Hostiles . | . . . . . Parts Melted 1 | . . . 1 . Heat Transferred 718 | . 309 150 259 . Parts Sabotaged . | . . . . . Parts Stolen . | . . . . . Parts Stripped . | . . . . . Power Chain Reactions 2 | . . 2 . . Missiles Intercepted . | . . . . . Alert | -11 -10 -9 -9 -8 ------- Run | Jun Mat Mat Min Mat Peak Influence 274 | 5 274 126 70 50 Initial 38 | . 3 38 . . Average 58 | 1 110 40 30 4 Maximum Alert Level 1 | . 1 . . . Low Security (%) 89 | 100 69 100 100 100 Level 1 10 | . 30 . . . Level 2 . | . . . . . Level 3 . | . . . . . Level 4 . | . . . . . Level 5 . | . . . . . High Security . | . . . . . Max Security . | . . . . . Squads Dispatched 7 | . 3 2 . 2 Investigation 1 | . 1 . . . Extermination . | . . . . . Reinforcement 6 | . 2 2 . 2 Assault . | . . . . . Garrison . | . . . . . Intercept . | . . . . . Searches Triggered . | . . . . . Construction Impeded 1 | . . 1 . . Haulers Reinforced . | . . . . . Active Scanning Responses . | . . . . . Cargo Convoy Interrupts . | . . . . . Stealth | -11 -10 -9 -9 -8 --------- Run | Jun Mat Mat Min Mat Distress Signals 3 | . 1 1 . 1 Communications Jammed . | . . . . . Distress Signals . | . . . . . Times Spotted 46 | . 17 17 3 9 Peak Tracking Total 10 | . 5 10 3 7 Tactical Retreats 1 | . 1 . . . Traps | -11 -10 -9 -9 -8 ------- Run | Jun Mat Mat Min Mat Traps Triggered 1 | . 1 . . . Indirectly . | . . . . . Trap Hack Attempts . | . . . . . Triggered . | . . . . . Disarmed . | . . . . . Reprogrammed . | . . . . . Reused . | . . . . . Traps Extracted . | . . . . . Installed . | . . . . . Triggered . | . . . . . Machines | -11 -10 -9 -9 -8 ---------- Run | Jun Mat Mat Min Mat Machines Disabled 9 | . 8 . . 1 Max in Single Turn 3 | . 3 . . 1 Machines Repaired . | . . . . . Machines Sabotaged . | . . . . . Overloaded Fab Kills . | . . . . . Hacking | -11 -10 -9 -9 -8 --------- Run | Jun Mat Mat Min Mat Machines Accessed 4 | . 4 . . . Terminals 4 | . 4 . . . Fabricators . | . . . . . Repair Stations . | . . . . . Recycling Units . | . . . . . Scanalyzers . | . . . . . Garrison Access . | . . . . . Total Hacks 6 | . 6 . . . Successful 1 | . 1 . . . Failed 5 | . 5 . . . Catastrophic 1 | . 1 . . . Database Lockouts . | . . . . . Manual 1 | . 1 . . . Terminals 6 | . 6 . . . Fabricators . | . . . . . Repair Stations . | . . . . . Recycling Units . | . . . . . Scanalyzers . | . . . . . Garrison Access . | . . . . . Terminal Hacks 1 | . 1 . . . Alert Level 1 | . 1 . . . Fabricator Hacks . | . . . . . Repair Station Hacks . | . . . . . Recycling Unit Hacks . | . . . . . Scanalyzer . | . . . . . Garrison Access Hacks . | . . . . . Unauthorized Hacks . | . . . . . Terminals . | . . . . . Fabricators . | . . . . . Repair Stations . | . . . . . Recycling Units . | . . . . . Scanalyzers . | . . . . . Garrison Access . | . . . . . Data Cores Recovered . | . . . . . Used . | . . . . . Hacking Detections 3 | . 3 . . . Full Trace Events . | . . . . . Feedback Events . | . . . . . Feedback Blocked . | . . . . . Robot Schematics Acquired . | . . . . . Robots Built . | . . . . . Authchips . | . . . . . Time . | . . . . . Total Robot Build Rating . | . . . . . Part Schematics Acquired . | . . . . . Parts Built . | . . . . . Authchips . | . . . . . Time . | . . . . . Total Part Build Rating . | . . . . . Parts Repaired . | . . . . . Time . | . . . . . Parts Recycled . | . . . . . Recycled Matter . | . . . . . Retrieved Matter . | . . . . . Retrieved Components . | . . . . . Parts Scanalyzed . | . . . . . Part Schematics Acquired . | . . . . . Parts Damaged . | . . . . . Bothacking | -11 -10 -9 -9 -8 ------------ Run | Jun Mat Mat Min Mat Used RIF Installer . | . . . . . Robots Hacked . | . . . . . Non-combat . | . . . . . Combat . | . . . . . Robot Hacks Applied . | . . . . . Relay Couplers Released . | . . . . . Fabnet Peak Effective % . | . . . . . Robots Rewired . | . . . . . Allies Hacked . | . . . . . Hacks Repelled . | . . . . . Allies | -11 -10 -9 -9 -8 -------- Run | Jun Mat Mat Min Mat Total Allies 3 | . . . 3 . Largest Group 3 | . . . 3 3 Highest-Rated Group 40 | . . . 40 40 Highest-Rated Ally 16 | . . . 16 16 Total Orders . | . . . . . Ally Attacks 2 | . . . . 2 Total Damage . | . . . . . Kills . | . . . . . Allies Corrupted . | . . . . . Allies Melted . | . . . . . Intel | -11 -10 -9 -9 -8 ------- Run | Jun Mat Mat Min Mat Robot Analysis Total . | . . . . . Derelict Logs Recovered 1 | . . . 1 . Drone Launches . | . . . . . Drone Recoveries . | . . . . . Exploration | -11 -10 -9 -9 -8 ------------- Run | Jun Mat Mat Min Mat Turns Passed 2382 | 130 828 696 571 157 Spaces Moved 1747 | 97 451 222 792 185 Core 73 | 36 8 4 . 25 Treads . | . . . . . Legs 717 | 56 443 218 . . Wheels 5 | 5 . . . . Hover 952 | . . . 792 160 Flight . | . . . . . Fastest Speed 50 | 50 100 50 56 50 Average Speed 95 | 97 136 182 56 55 Slowest Speed 250 | 120 190 250 60 100 Overloaded Moves . | . . . . . Propulsion Burnouts . | . . . . . Robots Hopped . | . . . . . Cave-ins Triggered . | . . . . . Exploration Rate (%) 37 | 6 58 20 88 14 Regions Visited 4 Branch Regions 1 Pre-discovered Areas 1 | . . . 1 . Known Exits Taken 2 | . . 1 1 . Unknown Exits Taken 2 | 1 1 . . . Scrap Searched 3 | . . . 3 . Spaces Dug . | . . . . . Terrain Destroyed 33 | . 28 5 . . Melee . | . . . . . Projectile . | . . . . . AOE 33 | . 28 5 . . Terrain Rammed . | . . . . . Walls Destroyed . | . . . . . Machines Disabled . | . . . . . Actions | -11 -10 -9 -9 -8 --------- Run | Jun Mat Mat Min Mat Total 2334 | 125 590 491 907 221 Wait 402 | . 59 247 96 . Move 1743 | 96 450 221 791 185 Hop . | . . . . . Pick Up 43 | 10 16 4 5 8 Fast Attach . | . . . . . Attach 36 | 8 8 5 5 10 Detach . | . . . . . Swap 3 | . 3 . . . Drop 7 | 2 2 1 . 2 Fire 92 | 9 52 12 10 9 Melee 4 | . . . . 4 Ram 3 | . . . . 3 Kick 1 | . . 1 . . Crush . | . . . . . Escape Stasis . | . . . . . Rewire . | . . . . . Trap . | . . . . . Miscellaneous . | . . . . . Route ------- -11/Junkyard -10/Materials -9/Materials -9/Mines -8/Materials History --------- Turn | Location | Event 12 | -11/Junkyard | Discovered new exit (range 16) 131 | -11/Junkyard | Entered Materials 308 | -10/Materials | Build established: Mutant 531 | -10/Materials | Core integrity fell below 50% 595 | -10/Materials | Core integrity fell below 20% 599 | -10/Materials | Lost 6 parts (1p2n1u2w) 855 | -10/Materials | Discovered new exit (range 7) 959 | -10/Materials | Entered another Materials area 959 | -9/Materials | Evolved 2 slots: Utility x2 1266 | -9/Materials | Build established: Scavenger-Skirmisher 1632 | -9/Materials | Discovered new exit (range 15) 1652 | -9/Materials | Identified exit to Mines 1655 | -9/Materials | Entered Mines 1660 | -9/Mines | Met a Derelict bent on vengeance 1685 | -9/Mines | Lost 5 parts (1p2n1u1w) 1697 | -9/Mines | Found a damaged Exp. Sensor Array with a note attached 1698 | -9/Mines | Found Prototype Device 1930 | -9/Mines | Build established: Scavenger-Scout 2027 | -9/Mines | Learned location of Zion (-6) 2081 | -9/Mines | Assisted by bots powering up and referring to "LRC-V3" 2196 | -9/Mines | Discovered new exit (range 12) 2212 | -9/Mines | Identified exit to Materials 2226 | -9/Mines | Entered Materials 2226 | -8/Materials | Accompanied by 3 allies 2226 | -8/Materials | Evolved 2 slots: Power x1, Utility x1 2360 | -8/Materials | Core integrity fell below 50% 2375 | -8/Materials | Core integrity fell below 20% 2383 | -8/Materials | Destroyed by Y-45 Defender with Beam Rifle Last Messages --------------- 02346_ Hvy. EM Pulse Gun destroyed. 02349_ Rocket Launcher destroyed. 02349_ Knocked back. 02349_ Penetrated by Slug. 02351_ W-25 Informer sends out distress signal. 02352_ Slug penetrates M-28 Smith. 02352_ Penetrated by Slug. 02352_ Hover Unit destroyed. 02352_ Knocked back. 02353_ M-28 Smith repairs C-17 Slicer. 02354_ Slug penetrates C-17 Slicer. 02354_ C-17 Slicer destroyed. 02355_ Penetrated by Slug. 02355_ Seismic Detector destroyed. 02355_ Acquired 11 matter. 02358_ Slug penetrates Wall. 02359_ Slammed into Y-45 Defender. 02361_ Slammed into G-47 Trooper. 02366_ Acquired Mining Claw. 02373_ Mining Claw follow-up attack on G-47 Trooper. Map ----- +----------------------------------------------------+ | | | | | | | | | | | | | | | | | | | ????????????????????????????????????????????????? | | ????????????????????????????????????????????????? | | ????????????????????????????????????????????????? | | ????????????????????????????????????????????????? | | ????????????????????????????????????????????????? | | ????????????????????????????????????????????????? | | ????????????????????????????????????????????????? | | ????????????????????????????????????????????????? | | ?????????????????????????????????????####???????? | | ??????????????????????????????###+#### #???????? | | ??????????????????????????????# = # #???????? | | ??????????????????????????????#= # ######### | | ????????????????????????????### """# # # | | ???????????????????????##### ## """# # """"" # | | ???????????????????????# // ## ] """# # """"" # | | ???????????????????????# #? # # """"" # | | ???????????????????????# @ #??###/"# " # | | ???????????????????????#Yg"" #??# =[% " ! **/ # | | ???????????????????????#Hg"""#??# =% % + // # | | ???????????????????????#gh S"#### % # *// # | | ??????????????#!! ## ??# ## # # # | | ??????????????#[[ ##+#### * # # | | ??????????????#[[ ! =% " ! ! # | | ??????????????#[[ ! %% ######### | | ??????????????#[[ #####/"# !! # # | | ??????????????######+### ! # """ # | | ???????????????????????# ! =% + """ # | | ???????????????????????# # # """ # | | ???????????????????????# """ " " # ## #"## # | | ???????????????????????# """ """ # ####### """ # | | ???????????????????????# """ """ # #?????# """ # | | ???????????????????????# # #?????# """ # | | ???????????????????????# # ####### # | | ???????????????????????########+## # # """ # | | ??????????????????????????????# # """ # """ # | | ???????????????????????######## # """ #! """ # | | ???????????????????????# [ # # """ # # | | ???????????????????????# # # ######## | | ???????????????????????# """" / + #??????? | | ???????????????????????# """" # # #??????? | | ???????????????????????# """" # ##########???? | +----------------------------------------------------+ Best States ------------- Heat Dissipation 31 Energy Generation 17 Energy Capacity 290 Matter Stores 300 Matter Capacity 300 Sight Range 18 Robot Scan Range 14 Terrain Scan Density 10 Additional Mass Support 9 Evasion (%) 55 Item Schematics ----------------- None Robot Schematics ------------------ None Fabricated ------------ Nothing Alien Tech Used ----------------- None Achievements -------------- None Challenges ------------ None Game ------ Seed LayeredFluxKinecellerator Manual? 0 Play Time 00:28:18 Cumulative 105.2 hours Start 2023.12.17 @ 20:52:13 End 2023.12.17 @ 21:54:07 Sessions 1 Manual Loads 0 Difficulty Rogue Special Mode None Game No. 89 Rogue 89 Adventurer 0 Explorer 0 Win Type - Total 0 Types 0/0/0/0/0/0/0/0/0 Lore% 35 Gallery% 38 Achievement% 30 Wizard Run 0 Options --------- ASCII 0 Keyboard 0 Movement Arrows Keybinds 0 Fullscreen 1 Font 18/SmallcapsGlow Map View 76x50 Tactical HUD 1 Map Filters NONE Filters NONE Steam 1 RUN: 8cf42f02-cc2f-4b9e-a2ca-3debc8b26b09